bitfinex/quotes_SOLUSD_20250728
["timestamp","ask_amount","ask_price","bid_price","bid_amount"]
[1753687539433,6.52813949,192.72,192.71,37.36]
[1753687540007,5.81813949,192.72,192.71,37.36]
[1753687540227,5.81813949,192.72,192.71,38.08]
[1753687541116,5.81813949,192.72,192.71,55.14900711]
[1753687543418,0.03,192.8,192.72,17.06900711]
[1753687543620,0.03,192.8,192.71,43.26914431]
[1753687543621,0.03,192.8,192.75,0.28432314]
[1753687543822,5.81813949,192.78,192.77,17.06900711]
[1753687544023,5.81813949,192.79,192.77,17.78900711]
[1753687544220,5.84813949,192.8,192.78,1.238726]
[1753687544426,5.84813949,192.8,192.79,55.06900711]
[1753687544629,5.84813949,192.8,192.79,37.28]
[1753687547532,12.37627898,192.8,192.79,37.28]
[1753687548624,12.37627898,192.8,192.75,1.23880674]
[1753687548960,0.67,192.79,192.76,37.26]
[1753687549436,0.67,192.79,192.76,36.24302229]
[1753687549855,0.67,192.79,192.73,48.34710711]
[1753687549856,0.67,192.78,192.74,17.06900711]
[1753687550024,0.67,192.78,192.75,37.26]
[1753687550349,5.81813949,192.76,192.75,55.00900711]
[1753687551347,5.81813949,192.76,192.73,0.06]
[1753687551524,5.81813949,192.74,192.73,0.74]
[1753687551719,5.81813949,192.74,192.73,37.32]
[1753687552350,5.81813949,192.74,192.73,55.06900711]
[1753687552737,0.67,192.79,192.74,17.06900711]
[1753687552923,0.67,192.79,192.75,37.26]
[1753687553123,0.67,192.79,192.75,37.94]
[1753687553729,11.03492197,192.8,192.76,0.68]
[1753687554238,5.81813949,192.77,192.76,16.78468397]
[1753687554424,5.81813949,192.77,192.76,54.30900711]
[1753687554837,5.81813949,192.77,192.76,54.98900711]
[1753687558260,0.03,192.8,192.77,0.28432314]
[1753687558429,0.03,192.8,192.78,37.758726]
[1753687558632,5.81813949,192.79,192.78,37.758726]
[1753687559233,5.81813949,192.79,192.78,55.50773311]
[1753687560038,0.03,192.8,192.79,17.06900711]
[1753687560263,5.84813949,192.8,192.79,17.74900711]
[1753687560455,0.03,192.8,192.79,17.74900711]
[1753687561335,5.84813949,192.8,192.79,17.74900711]
[1753687561940,0.03,192.8,192.79,17.74900711]
[1753687562563,5.84813949,192.8,192.79,17.74900711]
[1753687563458,0.03,192.8,192.79,43.74900711]
[1753687564739,5.84813949,192.8,192.79,43.74900711]
[1753687564949,0.03,192.8,192.79,43.74900711]
[1753687565163,0.03,192.8,192.79,80.96900711]
[1753687565455,5.84813949,192.8,192.79,80.96900711]
[1753687565844,0.03,192.8,192.79,80.96900711]
[1753687567460,0.03,192.8,192.79,159.28213762]
[1753687568956,0.03,192.8,192.79,153.46399813]
[1753687570163,0.03,192.8,192.79,169.28213762]
[1753687571042,0.03,192.8,192.79,159.28213762]
[1753687571353,0.03,192.8,192.79,169.28213762]
[1753687575640,0.03,192.81,192.8,115.33900711]
[1753687575957,0.03,192.81,192.8,121.8371466]
[1753687577161,6.51813949,192.81,192.8,105.05468397]
[1753687577341,6.51813949,192.81,192.8,142.75335616]
[1753687577542,6.51813949,192.81,192.8,142.23468397]
[1753687577743,6.51813949,192.81,192.8,142.51900711]
[1753687578462,6.51813949,192.81,192.8,53.96468397]
[1753687578759,6.51813949,192.81,192.8,54.24900711]
[1753687579145,5.84813949,192.81,192.8,80.24900711]
[1753687579353,0.03,192.81,192.8,80.90900711]
[1753687579552,0.03,192.81,192.8,54.90900711]
[1753687581588,0.03,192.81,192.8,55.4276793]
[1753687582548,5.84813949,192.81,192.8,54.7676793]
[1753687582865,6.52813949,192.81,192.8,54.62551773]
[1753687583049,6.52813949,192.81,192.8,54.7676793]
[1753687583461,6.52813949,192.81,192.8,54.62551773]
[1753687583867,6.52813949,192.81,192.8,54.7676793]
[1753687584172,6.52813949,192.81,192.8,54.7476793]
[1753687584549,6.52813949,192.81,192.8,17.5876793]
[1753687584863,6.52813949,192.81,192.8,80.7476793]
[1753687585854,6.52813949,192.81,192.8,43.5876793]
[1753687586182,6.52813949,192.81,192.8,79.94468397]
[1753687586560,6.52813949,192.81,192.8,80.22900711]
[1753687587296,6.52813949,192.81,192.8,80.7476793]
[1753687588273,6.52813949,192.81,192.8,80.22900711]
[1753687589368,5.84813949,192.81,192.8,80.22900711]
[1753687589567,5.84813949,192.81,192.8,80.7476793]
[1753687590080,0.03,192.81,192.8,81.4076793]
[1753687590262,0.03,192.81,192.8,55.4076793]
[1753687590686,0.03,192.81,192.8,55.4676793]
[1753687590869,0.03,192.81,192.8,54.8076793]
[1753687593083,0.03,192.81,192.8,55.4676793]
[1753687593385,0.03,192.81,192.8,60.65440129]
[1753687594065,0.03,192.81,192.8,77.01034078]
[1753687595559,5.18324683,192.93,192.85,43.06900711]
[1753687595758,0.03,192.88,192.86,54.72751794]
[1753687595961,5.84813949,192.87,192.86,54.72751794]
[1753687597088,0.03,192.87,192.86,54.72751794]
[1753687597392,5.84813949,192.87,192.86,54.72751794]
[1753687598186,0.03,192.87,192.86,54.72751794]
[1753687598388,5.84813949,192.87,192.86,54.72751794]
[1753687599790,6.52813949,192.87,192.86,54.72751794]
[1753687599986,0.03,192.87,192.86,54.72751794]
[1753687600688,0.03,192.87,192.86,55.38751794]
[1753687601273,0.03,192.87,192.86,54.72751794]
[1753687601478,5.84813949,192.87,192.86,54.72751794]
[1753687602369,6.52813949,192.87,192.86,54.72751794]
[1753687602972,5.84813949,192.87,192.86,54.72751794]
[1753687603904,6.52813949,192.87,192.86,54.72751794]
[1753687604124,6.52813949,192.87,192.86,17.58751794]
[1753687604392,6.52813949,192.87,192.86,37.12]
[1753687605592,5.84813949,192.87,192.86,54.18900711]
[1753687605895,6.52813949,192.87,192.86,54.18900711]
[1753687606772,6.52813949,192.87,192.84,88.27]
[1753687606773,6.52813949,192.87,192.84,26.0]
[1753687607076,6.52813949,192.87,192.81,16.78468397]
[1753687607077,0.68,192.86,192.85,37.12]
[1753687608466,6.49813949,192.86,192.85,37.12]
[1753687611283,0.03,192.87,192.85,80.18900711]
[1753687611628,0.03,192.87,192.86,43.58751794]
[1753687611898,0.75,192.87,192.86,43.58751794]
[1753687612487,0.03,192.87,192.86,43.58751794]
[1753687612875,5.84813949,192.87,192.86,43.58751794]
[1753687614196,0.03,192.87,192.86,18.27751794]
[1753687616206,0.03,192.87,192.86,23.4626263]
[1753687617180,0.03,192.87,192.86,117.55076579]
[1753687617386,0.03,192.87,192.86,117.03225496]
[1753687617905,0.03,192.87,192.86,127.03225496]
[1753687620222,0.03,192.87,192.86,110.92979233]
[1753687620515,0.03,192.87,192.86,148.54830316]
[1753687620694,0.03,192.87,192.86,148.1719539]
[1753687620894,0.03,192.87,192.86,148.31411547]
[1753687622207,0.03,192.87,192.86,111.21411547]
[1753687622413,0.03,192.87,192.86,148.8126263]
[1753687622588,0.03,192.87,192.86,148.29411547]
[1753687622999,0.03,192.87,192.86,154.11225496]
[1753687624002,0.03,192.87,192.86,164.11225496]
[1753687629117,0.03,192.87,192.86,127.03225496]
[1753687629312,0.03,192.89,192.88,115.02468397]
[1753687629516,0.03,192.89,192.88,163.39171731]
[1753687629821,0.03,192.91,192.9,26.78468397]
[1753687630006,0.03,192.91,192.9,158.72554991]
[1753687630219,0.03,192.91,192.9,158.8971466]
[1753687630432,5.76718047,192.99,192.94,42.78468397]
[1753687630617,5.76718047,192.99,192.98,43.06900711]
[1753687630924,5.81813949,192.99,192.98,80.12900711]
[1753687632537,6.53813949,192.99,192.98,80.12900711]
[1753687634625,15.46115708,193.05,192.99,17.06900711]
[1753687634626,5.81813949,193.0,192.99,17.06900711]
[1753687634826,5.81813949,193.0,192.99,54.64716867]
[1753687635222,5.81813949,193.01,192.99,54.64716867]
[1753687635528,10.35018242,193.07,192.99,54.64716867]
[1753687635529,5.81813949,193.0,192.99,54.64716867]
[1753687635702,6.53813949,193.0,192.99,17.06900711]
[1753687635903,6.53813949,193.0,192.99,63.34432314]
[1753687636414,12.35627898,193.0,192.99,26.0]
[1753687636614,12.35627898,193.0,192.99,63.06]
[1753687637217,6.53813949,193.0,192.99,63.06]
[1753687639429,6.53813949,193.0,192.99,63.04]
[1753687640020,5.81813949,193.0,192.99,63.04]
[1753687640212,5.81813949,193.0,192.99,80.10900711]
[1753687640414,5.81813949,193.0,192.99,43.06900711]
[1753687640611,5.81813949,193.0,192.99,80.10900711]
[1753687641212,5.81813949,193.0,192.99,43.06900711]
[1753687641437,6.48813949,193.0,192.99,80.10900711]
[1753687643622,6.48813949,193.0,192.99,43.06900711]
[1753687643832,6.48813949,193.0,192.99,80.10900711]
[1753687644541,5.81813949,193.0,192.99,80.10900711]
[1753687644942,6.48813949,193.0,192.99,80.10900711]
[1753687645324,0.67,193.02,193.0,16.78468397]
[1753687645530,0.67,193.02,193.01,37.04]
[1753687646541,6.48813949,193.02,193.01,37.04]
[1753687646744,6.48813949,193.02,192.98,0.28432314]
[1753687647052,5.81813949,192.99,192.98,0.28432314]
[1753687647221,5.81813949,192.99,192.98,37.30432314]
[1753687647823,6.48813949,192.99,192.94,88.75829584]
[1753687648142,5.81813949,193.0,192.92,16.78468397]
[1753687648143,5.81813949,192.95,192.92,16.78468397]
[1753687648312,0.67,192.98,192.92,43.78900711]
[1753687648313,5.81813949,192.93,192.92,43.78900711]
[1753687648516,5.81813949,192.93,192.92,80.52468397]
[1753687648717,5.81813949,192.93,192.92,54.80900711]
[1753687649017,5.81813949,192.93,192.92,80.52468397]
[1753687649216,5.81813949,192.93,192.92,54.52468397]
[1753687649413,5.81813949,192.93,192.92,54.80900711]
[1753687649716,5.81813949,192.93,192.92,80.80900711]
[1753687650116,5.81813949,192.93,192.92,81.32735668]
[1753687651023,5.81813949,192.93,192.92,0.51834957]
[1753687651228,6.48813949,192.93,192.92,37.02]
[1753687651538,17.48950605,192.93,192.92,37.02]
[1753687652119,11.63627898,192.92,192.91,37.08]
[1753687652436,12.30627898,192.92,192.91,37.08]
[1753687653530,5.81813949,192.92,192.91,37.08]
[1753687655846,5.81813949,192.92,192.91,54.86900711]
[1753687656425,5.81813949,192.92,192.91,54.14900711]
[1753687657664,5.81813949,192.92,192.91,0.06]
[1753687657665,12.30627898,192.92,192.91,0.06]
[1753687657826,12.30627898,192.92,192.91,37.08]
[1753687658159,17.48977472,192.92,192.91,37.08]
[1753687659032,17.48977472,192.92,192.91,0.06]
[1753687661145,17.48977472,192.92,192.89,37.0]
[1753687661342,11.63627898,192.9,192.89,37.0]
[1753687667336,16.82031215,192.9,192.89,37.0]
[1753687668269,16.82031215,192.9,192.88,37.0]
[1753687668566,5.81813949,192.89,192.88,37.0]
[1753687669277,11.00252544,192.89,192.87,26.06]
[1753687669480,11.00252544,192.89,192.86,16.84468397]
[1753687669481,6.53813949,192.88,192.86,0.06]
[1753687669647,5.81813949,192.87,192.84,16.78468397]
[1753687669843,5.81813949,192.85,192.84,16.92684554]
[1753687670475,5.81813949,192.85,192.84,17.06900711]
[1753687670680,5.81813949,192.85,192.84,17.72900711]
[1753687676046,5.81813949,192.85,192.82,16.84468397]
[1753687676246,5.18517605,192.86,192.83,0.28432314]
[1753687676477,5.18482665,192.88,192.83,0.28432314]
[1753687676652,5.90417542,192.9,192.84,17.44468397]
[1753687677044,6.423036,192.9,192.84,16.78468397]
[1753687677245,6.423036,192.9,192.85,0.66]
[1753687677246,5.90417542,192.9,192.85,0.66]
[1753687677459,5.90324378,192.93,192.87,0.28432314]
[1753687677792,5.90324378,192.93,192.88,0.66]
[1753687677958,5.90324378,192.93,192.89,36.98]
[1753687678584,5.81813949,192.9,192.89,36.98]
[1753687678879,5.18295843,192.94,192.89,37.64]
[1753687679083,5.81813949,192.9,192.89,54.04900711]
[1753687679285,5.81813949,192.9,192.89,53.76468397]
[1753687679459,5.81813949,192.9,192.89,54.04900711]
[1753687679652,5.73130794,192.96,192.9,0.28432314]
[1753687679848,0.03,192.96,192.92,17.06900711]
[1753687680055,0.03,192.96,192.93,37.64]
[1753687680447,0.03,192.96,192.94,0.66]
[1753687680659,0.03,192.96,192.95,36.98]
[1753687680857,5.93242122,192.96,192.95,36.98]
[1753687681188,11.75056071,192.96,192.95,36.98]
[1753687681351,11.75056071,192.96,192.94,36.98]
[1753687681695,5.81813949,192.95,192.94,37.64]
[1753687681862,0.03,192.96,192.94,54.42468397]
[1753687682186,5.81813949,192.95,192.94,54.04900711]
[1753687682701,5.81813949,192.95,192.94,54.70900711]
[1753687684386,5.81813949,192.95,192.94,17.72900711]
[1753687684569,5.81813949,192.95,192.94,54.68900711]
[1753687685070,0.03,192.96,192.95,16.78468397]
[1753687685270,0.03,192.96,192.95,17.96295295]
[1753687685506,5.84813949,192.96,192.95,17.96295295]
[1753687686117,5.84813949,192.96,192.95,17.44468397]
[1753687687512,5.84813949,192.96,192.95,54.40468397]
[1753687689997,5.84813949,192.96,192.95,54.68900711]
[1753687691280,0.03,192.96,192.95,55.20727609]
[1753687693533,0.03,192.96,192.95,143.50727609]
[1753687693699,0.03,192.96,192.95,142.98900711]
[1753687696529,5.84813949,192.96,192.95,106.02900711]
[1753687696705,0.03,192.96,192.95,143.48727609]
[1753687696910,0.03,192.96,192.95,142.96900711]
[1753687697331,5.84813949,192.96,192.95,142.96900711]
[1753687697629,0.03,192.96,192.95,142.96900711]
[1753687699336,5.84813949,192.96,192.95,105.08468397]
[1753687699492,6.50813949,192.96,192.9,11.3861]
[1753687699700,5.81813949,192.91,192.9,11.3861]
[1753687700021,5.81813949,192.91,192.9,48.3061]
[1753687700223,5.81813949,192.91,192.9,16.78468397]
[1753687700405,5.81813949,192.91,192.9,54.39468397]
[1753687700600,5.81813949,192.91,192.9,54.67900711]
[1753687701023,5.87242739,192.96,192.92,0.28432314]
[1753687701221,5.87242739,192.96,192.93,53.70468397]
[1753687702041,0.66,192.95,192.93,53.70468397]
[1753687702258,0.66,192.94,192.93,53.70468397]
[1753687702558,5.81813949,192.94,192.93,53.98900711]
[1753687702748,5.81813949,192.94,192.93,17.06900711]
[1753687702936,5.81813949,192.94,192.93,53.98900711]
[1753687705344,5.81813949,192.94,192.93,54.67900711]
[1753687705629,0.03,192.96,192.94,0.28432314]
[1753687705851,0.03,192.96,192.95,37.20432314]
[1753687706769,5.84813949,192.96,192.95,37.20432314]
[1753687707123,5.84813949,192.96,192.95,37.89432314]
[1753687708456,5.84813949,192.96,192.95,63.89432314]
[1753687708656,5.84813949,192.96,192.95,63.20432314]
[1753687708845,6.50813949,192.96,192.95,62.92]
[1753687709042,0.03,192.96,192.95,62.92]
[1753687709273,5.84813949,192.96,192.95,62.92]
[1753687710596,5.84813949,192.96,192.95,80.67900711]
[1753687710763,5.84813949,192.96,192.95,79.98900711]
[1753687710964,5.84813949,192.96,192.95,80.67900711]
[1753687712252,0.03,192.96,192.95,80.67900711]
[1753687712458,0.03,192.96,192.95,142.97900711]
[1753687713796,5.84813949,192.96,192.95,106.05900711]
[1753687714107,5.84813949,192.96,192.95,142.14684554]
[1753687714255,5.84813949,192.96,192.95,168.14684554]
[1753687714867,5.84813949,192.96,192.95,168.28900711]
[1753687716919,5.84813949,192.96,192.95,79.98900711]
[1753687717428,5.84813949,192.96,192.95,80.67900711]
[1753687717728,5.84813949,192.96,192.95,79.98900711]
[1753687718934,5.84813949,192.96,192.95,43.06900711]
[1753687719127,5.84813949,192.96,192.95,79.96900711]
[1753687719302,5.84813949,192.96,192.95,62.9]
[1753687721916,5.84813949,192.96,192.95,26.0]
[1753687722244,5.84813949,192.96,192.95,62.9]
[1753687723319,5.84813949,192.96,192.95,80.65900711]
[1753687724150,5.84813949,192.96,192.95,79.96900711]
[1753687728141,0.03,192.96,192.95,80.65900711]
[1753687728463,5.84813949,192.96,192.95,80.65900711]
[1753687730166,5.84813949,192.96,192.95,79.96900711]
[1753687730332,5.84813949,192.96,192.95,43.06900711]
[1753687730533,5.84813949,192.96,192.95,79.96900711]
[1753687732355,5.84813949,192.96,192.95,80.65900711]
[1753687734273,5.84813949,192.96,192.95,43.75900711]
[1753687734472,5.84813949,192.96,192.95,80.65900711]
[1753687734637,5.84813949,192.96,192.95,43.75900711]
[1753687734838,0.03,192.96,192.95,80.65900711]
[1753687735045,0.03,192.96,192.95,143.47727609]
[1753687735263,0.03,192.96,192.95,142.95900711]
[1753687736166,0.03,192.96,192.95,148.14169692]
[1753687736663,0.03,192.96,192.95,159.14933641]
[1753687739654,0.03,192.96,192.95,116.43119692]
[1753687739966,0.03,192.96,192.95,153.31119692]
[1753687740168,0.03,192.96,192.95,148.12850711]
[1753687740470,0.03,192.96,192.95,111.24850711]
[1753687740673,0.03,192.96,192.95,60.34677609]
[1753687741262,0.03,192.96,192.95,65.5294659]
[1753687743364,0.03,192.96,192.95,71.34760539]
[1753687744876,0.03,192.96,192.95,65.5294659]
[1753687745048,0.03,192.96,192.95,71.34760539]
[1753687746548,0.03,192.96,192.95,159.64760539]
[1753687746900,0.03,192.96,192.95,159.12933641]
[1753687748255,0.03,192.96,192.95,153.31119692]
[1753687748453,0.03,192.96,192.95,159.12933641]
[1753687750647,0.03,192.96,192.95,153.31119692]
[1753687750853,0.03,192.96,192.95,159.12933641]
[1753687751974,0.03,192.96,192.95,153.31119692]
[1753687753064,5.84813949,192.96,192.95,105.08468397]
[1753687753386,5.84813949,192.96,192.92,0.69]
[1753687753387,6.55813949,192.96,192.92,88.3]
[1753687753581,5.81813949,192.95,192.93,36.86]
[1753687753962,0.03,192.96,192.93,36.86]
[1753687754285,0.03,192.96,192.95,43.06900711]
[1753687754458,0.03,192.96,192.95,79.92900711]
[1753687755486,5.84813949,192.96,192.95,79.92900711]
[1753687756361,6.55813949,192.96,192.95,53.64468397]
[1753687756581,6.55813949,192.96,192.95,53.78684554]
[1753687756779,6.55813949,192.96,192.95,53.92900711]
[1753687756989,6.55813949,192.96,192.95,16.78468397]
[1753687757284,6.55813949,192.96,192.95,53.64468397]
[1753687757476,6.55813949,192.96,192.95,53.92900711]
[1753687762175,5.84813949,192.96,192.95,53.92900711]
[1753687765962,5.84813949,192.96,192.95,17.06900711]
[1753687766187,11.72056071,192.96,192.95,53.90900711]
[1753687766374,11.72056071,192.96,192.92,16.78468397]
[1753687766575,0.69,192.95,192.93,36.84]
[1753687766902,5.81813949,192.94,192.93,53.76684554]
[1753687767691,5.81813949,192.94,192.93,53.90900711]
[1753687771100,11.69109792,192.94,192.93,36.84]
[1753687772992,11.69109792,192.94,192.9,17.06900711]
[1753687773209,0.69,192.93,192.91,53.90900711]
[1753687773897,5.18295843,192.94,192.91,53.90900711]
[1753687774108,5.18295843,192.94,192.91,54.61900711]
[1753687774303,5.81813949,192.92,192.91,54.61900711]
[1753687775979,5.81813949,192.93,192.91,54.61900711]
[1753687776202,0.03,192.96,192.93,17.06900711]
[1753687776203,5.81813949,192.94,192.93,17.06900711]
[1753687776391,5.81813949,192.94,192.93,54.61900711]
[1753687778907,0.03,192.96,192.94,0.28432314]
[1753687779108,0.03,192.96,192.95,53.90900711]
[1753687779297,5.84813949,192.96,192.95,54.61900711]
[1753687780321,5.84813949,192.96,192.95,53.90900711]
[1753687780629,5.84813949,192.96,192.9,114.3]
[1753687780630,11.72056071,192.96,192.9,114.3]
[1753687780782,5.81813949,192.91,192.9,16.78468397]
[1753687781113,5.81813949,192.91,192.9,53.88900711]
[1753687781606,5.81813949,192.91,192.9,54.59900711]
[1753687782106,11.00190393,192.91,192.9,53.60468397]
[1753687782313,11.69190393,192.91,192.9,36.82]
[1753687782610,11.69190393,192.91,192.87,26.0]
[1753687782813,5.87376444,192.91,192.89,17.06900711]
[1753687782990,5.87376444,192.91,192.89,16.92684554]
[1753687783190,5.18376444,192.91,192.89,16.92684554]
[1753687783910,5.81813949,192.9,192.89,17.06900711]
[1753687785916,5.81813949,192.9,192.88,36.82]
[1753687786118,5.81813949,192.89,192.88,53.88900711]
[1753687786718,5.81813949,192.89,192.88,54.59900711]
[1753687788311,0.03,192.93,192.88,54.59900711]
[1753687788616,5.81813949,192.91,192.89,0.72]
[1753687788785,5.81813949,192.91,192.86,6.39665032]
[1753687788786,5.81813949,192.91,192.9,54.60900711]
[1753687788986,0.03,192.93,192.91,17.06900711]
[1753687788987,5.81813949,192.92,192.91,17.06900711]
[1753687789183,5.81813949,192.92,192.91,17.78900711]
[1753687793706,5.81813949,192.92,192.91,17.06900711]
[1753687793913,5.81813949,192.92,192.9,36.82]
[1753687794085,5.81813949,192.91,192.9,53.88900711]
[1753687796725,11.67190393,192.91,192.9,36.82]
[1753687796898,11.67190393,192.91,192.87,16.78468397]
[1753687797087,5.81813949,192.88,192.87,16.78468397]
[1753687797285,5.81813949,192.88,192.87,53.88900711]
[1753687797519,5.81813949,192.88,192.87,36.82]
[1753687797891,5.81813949,192.88,192.86,36.86]
[1753687798119,5.81813949,192.87,192.86,37.14432314]
[1753687798302,5.81813949,192.87,192.86,36.86]
[1753687798509,11.00297901,192.87,192.86,0.06]
[1753687799190,11.67297901,192.87,192.86,0.06]
[1753687801436,11.00297901,192.87,192.86,0.06]
[1753687801799,11.67297901,192.87,192.86,0.06]
[1753687802325,5.2012,192.86,192.84,0.06]
[1753687802497,5.2012,192.86,192.81,0.06]
[1753687802498,6.33700007,192.85,192.81,0.06]
[1753687802701,5.18645298,192.81,192.76,0.06]
[1753687802900,12.15513956,192.8,192.76,0.06]
[1753687803123,5.81813949,192.79,192.76,0.06]
[1753687803319,6.33700007,192.78,192.76,0.06]
[1753687803522,7.00700007,192.78,192.76,0.06]
[1753687804826,6.33700007,192.78,192.76,0.06]
[1753687805023,5.81813949,192.78,192.77,0.78]
[1753687805412,5.70504458,192.82,192.77,0.78]
[1753687805621,5.81813949,192.78,192.77,0.78]
[1753687806000,5.81813949,192.78,192.77,0.06]
[1753687806334,6.48813949,192.78,192.77,0.06]
[1753687806627,5.81813949,192.78,192.77,0.06]
[1753687807000,11.00539957,192.78,192.77,0.06]
[1753687810426,11.03539957,192.78,192.77,0.06]
[1753687810731,11.70539957,192.78,192.77,0.06]
[1753687812002,11.70539957,192.78,192.76,0.06]
[1753687812223,7.00700007,192.77,192.73,0.06]
[1753687812405,1.18886058,192.77,192.73,0.06]
[1753687812739,5.81813949,192.74,192.73,0.06]
[1753687813045,11.0064761,192.74,192.73,0.06]
[1753687815635,11.6764761,192.74,192.73,0.06]
[1753687815799,11.6764761,192.74,192.73,0.78]
[1753687815800,11.0064761,192.74,192.73,0.78]
[1753687816001,5.81813949,192.74,192.73,0.78]
[1753687816215,11.0064761,192.74,192.73,0.78]
[1753687816432,11.0064761,192.74,192.73,0.06]
[1753687817037,11.6764761,192.74,192.73,0.06]
[1753687817735,11.0064761,192.74,192.73,0.06]
[1753687818616,11.6764761,192.74,192.73,0.06]
[1753687819131,11.6764761,192.74,192.73,17.56468397]
[1753687819132,5.81813949,192.74,192.73,17.56468397]
[1753687819313,0.51886058,192.76,192.73,17.56468397]
[1753687819314,5.18774772,192.77,192.73,17.56468397]
[1753687819516,5.81813949,192.74,192.73,16.84468397]
[1753687819704,5.81813949,192.74,192.73,0.06]
[1753687820029,5.2173028,192.78,192.73,0.06]
[1753687820197,5.81813949,192.76,192.74,16.78468397]
[1753687820399,5.2173028,192.78,192.75,0.72]
[1753687820715,5.81813949,192.76,192.75,0.72]
[1753687821427,11.00593778,192.76,192.75,0.72]
[1753687821635,5.81813949,192.76,192.75,0.72]
[1753687821807,11.00593778,192.76,192.75,0.72]
[1753687822429,5.81813949,192.76,192.75,0.72]
[1753687823126,11.00593778,192.76,192.74,16.78468397]
[1753687823307,5.81813949,192.75,192.74,16.78468397]
[1753687823509,5.81813949,192.75,192.73,0.78]
[1753687823731,5.81813949,192.74,192.73,16.84468397]
[1753687824116,5.81813949,192.74,192.73,17.56468397]
[1753687824837,5.21752758,192.78,192.74,16.78468397]
[1753687825012,5.81813949,192.76,192.75,0.72]
[1753687825205,5.81813949,192.77,192.75,0.72]
[1753687825406,0.03,192.78,192.75,0.72]
[1753687827127,0.03,192.78,192.77,17.06900711]
[1753687827634,0.03,192.78,192.77,17.78900711]
[1753687829338,5.84813949,192.78,192.77,17.78900711]
[1753687829712,5.84813949,192.78,192.74,10.7633]
[1753687829934,0.03,192.78,192.75,16.78468397]
[1753687830132,0.03,192.78,192.74,17.50468397]
[1753687830341,0.7,192.78,192.74,16.78468397]
[1753687830646,0.51886058,192.77,192.74,16.78468397]
[1753687830836,0.7,192.78,192.74,16.78468397]
[1753687831013,5.81813949,192.75,192.73,17.12900711]
[1753687831343,11.0064761,192.74,192.73,0.06]
[1753687832426,11.0064761,192.74,192.73,0.78]
[1753687832945,11.0064761,192.74,192.73,0.06]
[1753687833934,11.6764761,192.74,192.73,0.06]
[1753687834133,11.6764761,192.74,192.72,0.06]
[1753687834340,7.00700007,192.73,192.72,0.06]
[1753687834548,38.82513956,192.73,192.69,0.06]
[1753687834729,11.63627898,192.7,192.69,0.06]
[1753687835039,12.15513956,192.7,192.69,0.06]
[1753687835210,12.15513956,192.7,192.67,0.06]
[1753687835414,5.81813949,192.68,192.67,0.06]
[1753687835618,11.52695232,192.68,192.67,0.06]
[1753687835842,12.19695232,192.68,192.67,0.06]
[1753687836618,12.19695232,192.68,192.66,0.2]
[1753687836824,5.81813949,192.67,192.66,0.2]
[1753687837054,11.63133949,192.67,192.52,15.5733]
[1753687837336,26.0,192.63,192.56,16.78468397]
[1753687837542,0.51886058,192.62,192.56,16.28468397]
[1753687837755,18.17143449,192.61,192.56,16.28468397]
[1753687837942,0.51886058,192.6,192.56,16.28468397]
[1753687838122,1.18886058,192.6,192.56,16.28468397]
[1753687838520,5.81813949,192.57,192.56,16.28468397]
[1753687838725,5.81813949,192.57,192.56,17.00468397]
[1753687839818,11.01105635,192.57,192.56,17.00468397]
[1753687840232,11.01105635,192.57,192.54,0.72]
[1753687840561,5.81813949,192.55,192.5,16.78468397]
[1753687840845,5.81813949,192.55,192.54,0.72]
[1753687841062,5.81813949,192.55,192.54,17.50468397]
[1753687841433,42.01268128,192.58,192.55,16.78468397]
[1753687841743,5.81813949,192.61,192.58,0.28432314]
[1753687842129,5.81813949,192.61,192.59,0.72]
[1753687842345,36.82,192.63,192.59,0.72]
[1753687842546,37.33886058,192.63,192.6,0.72]
[1753687842740,5.81813949,192.61,192.58,0.28432314]
[1753687842949,5.81813949,192.6,192.58,0.28432314]
[1753687843129,37.33886058,192.63,192.59,0.72]
[1753687843451,5.81813949,192.6,192.58,0.28432314]
[1753687844028,11.01024748,192.6,192.59,0.72]
[1753687844365,36.82,192.61,192.59,0.72]
[1753687845073,42.63813949,192.61,192.6,17.50468397]
[1753687845574,42.63813949,192.61,192.6,16.78468397]
[1753687845726,42.63813949,192.61,192.58,0.28432314]
[1753687845929,36.82,192.61,192.59,0.72]